Cogmind - Beta 13 *** ADVENTURER MODE // 2024.06.10 @ 11:06:54 Player: ME Result: Destroyed by Y-45 Defender with Heavy Assault Rifle Performance ------------- Evolutions (1) 500 Regions Visited (5) 1000 Robots Destroyed (65) 325 Value Destroyed (2329) 2329 Prototype IDs (8) 160 Alien Tech Used (0) 0 Bonus (1664) 1664 TOTAL SCORE: 5978 Bonus ------- High Alert Combat Kills 315 Follower Combat Kills 149 Entered Garrisons 200 Used RIF Installer 1000 Cogmind --------- Core Integrity 0/400 Matter 290/300 Energy 274/280 System Corruption 0% Temperature Cool (12) Movement Walking (105) Location -9/Recycling Parts ------- > --- POWER (1) -------- Cooled Ion Engine > --- PROPULSION (2) --- Aluminum Leg VSS Leg > --- UTILITY (3) ------ Small Storage Unit Signal Interpreter Improved Targeting Computer > --- WEAPON (3) ------- Beam Rifle Heavy Assault Rifle Datajack > --- INVENTORY (8) ---- Cooled Ion Engine Scrap Engine Improved Heat Sink Authchip [Weapon] Relay Coupler [NC] (37) Relay Coupler [Hunter] (22) 01-MTF's Shockpuncher Peak State ------------ > --- POWER ------------ Cooled Ion Engine > --- PROPULSION ------- Aluminum Leg VSS Leg > --- UTILITY ---------- Small Storage Unit Signal Interpreter Improved Targeting Computer > --- WEAPON ----------- 01-MTF's Shockpuncher Heavy Assault Rifle Heavy Assault Rifle > --- INVENTORY -------- Cooled Ion Engine Improved Heat Sink Improved Heat Sink Relay Coupler [NC] Drone Bay Small Laser Datajack Plasma Cutter [Rating: 23] Favorites ----------- Power Cooled Ion Engine Engine Cooled Ion Engine Power Core Light Nuclear Core Propulsion Aluminum Leg Leg Aluminum Leg Utility Small Storage Unit Device Heat Sink Storage Small Storage Unit Processor Signal Interpreter Weapon Heavy Assault Rifle Energy Gun Beam Rifle Ballistic Gun Heavy Assault Rifle Special Weapon Plasma Cutter Special Melee Weapon Datajack Build | -11 -10 -9 -9 -9 -9 ------- Run | Yrd Mat Mat Sto Gar Rec Slots Evolved 2 | . . 2 . . . Power . | . . . . . . Propulsion . | . . . . . . Utility 1 | . . 1 . . . Weapon 1 | . . 1 . . . Parts Attached 60 | 6 2 6 16 28 2 Power 9 | 1 . 1 4 3 . Engine 8 | 1 . 1 4 2 . Core 1 | . . . . 1 . Reactor . | . . . . . . Propulsion 16 | 2 1 1 4 8 . Treads . | . . . . . . Leg 16 | 2 1 1 4 8 . Wheel . | . . . . . . Hover . | . . . . . . Flight . | . . . . . . Utility 6 | 1 1 2 2 . . Device 2 | . 1 1 . . . Storage 1 | 1 . . . . . Processor 3 | . . 1 2 . . Hackware . | . . . . . . Protection . | . . . . . . Artifact . | . . . . . . Weapon 29 | 2 . 2 6 17 2 Energy Gun 13 | 1 . 1 3 8 . Energy Cannon . | . . . . . . Ballistic Gun 12 | 1 . 1 3 6 1 Ballistic Cannon . | . . . . . . Launcher . | . . . . . . Special Weapon 3 | . . . . 3 . Impact Weapon . | . . . . . . Slashing Weapon . | . . . . . . Piercing Weapon . | . . . . . . Special Melee Weapon 1 | . . . . . 1 Unidentified Prototypes . | . . . . . . Parts Lost 9 | . 1 . . 8 . Power 1 | . . . . 1 . Propulsion 4 | . 1 . . 3 . Utility . | . . . . . . Weapon 4 | . . . . 4 . Highest Loss Streak 4 | . 1 . . 4 . To Critical Strikes . | . . . . . . Average Slot Usage (%) 98 | . 97 100 100 97 100 Engine 11 | . 14 11 11 10 11 Leg 22 | . 26 22 22 21 22 Device 3 | . 12 22 . . . Storage 11 | . 14 11 11 11 11 Processor 17 | . . . 21 22 22 Energy Gun 12 | . 14 22 14 8 11 Ballistic Gun 17 | . 14 11 18 20 13 Naked Turns . | . . . . . . Heaviest Build 24 | 14 15 17 22 24 22 Greatest Support 22 | 20 20 20 20 22 22 Greatest Overweight (x) 2 | . 1 . 1 2 . Average Overweight (x) . | . . . . . . Largest Inventory Capacity 8 | 8 8 8 8 8 8 Average Capacity 7 | 6 8 8 8 8 8 Most Carried 8 | 1 7 8 8 8 8 Average Carried 7 | . 2 6 7 7 7 Final Capacity 8 | 8 8 8 8 8 8 Final Carried 8 | 1 7 8 8 8 8 Class Distribution -------------------- 70% | Scavenger-Gunner 14% | Scavenger-Mutant 12% | Mutant Dominant Class ---------------- Mutant | -10/Materials Scavenger-Gunner | -9/Materials Scavenger-Gunner | -9/Storage Scavenger-Gunner | -9/Garrison Scavenger-Mutant | -9/Recycling Resources | -11 -10 -9 -9 -9 -9 ----------- Run | Yrd Mat Mat Sto Gar Rec Matter Collected 1323 | 135 222 107 300 519 40 Remotely . | . . . . . . Salvage Created 2564 | 56 222 288 1047 901 50 Parts 143 | 1 10 20 56 52 4 Haulers Intercepted . | . . . . . . Recyclers Shooed 1 | . 1 . . . . Parts Field Recycled . | . . . . . . Retrieved Matter . | . . . . . . Parts Self-Destructed . | . . . . . . Prevented . | . . . . . . Kills | -11 -10 -9 -9 -9 -9 ------- Run | Yrd Mat Mat Sto Gar Rec Combat Hostiles Destroyed 56 | . 3 7 22 23 1 Guns 52 | . 3 6 20 22 1 AOE 3 | . . . 2 1 . Classes Destroyed 9 | 1 2 4 . 2 . Worker 2 | . . 1 1 . . Recycler 3 | 1 1 . 1 . . Operator 1 | . . 1 . . . Watcher 3 | . 1 . 2 . . Swarmer 11 | . . 3 4 4 . Grunt 32 | . 3 2 12 15 . Duelist 1 | . . . . 1 . Sentry 10 | . . 2 6 1 1 Specialist 2 | . . . . 2 . Best Kill Streak 8 | 1 4 4 8 6 1 Combat Bots Only 8 | . 3 3 8 6 1 Max Kills in Single Turn 3 | 1 1 2 3 2 1 Gunslinging 1 | . . 1 . 1 . Exploded 2 | . . . 2 1 . Melee . | . . . . . . Uniques/NPCs Destroyed . | . . . . . . Combat | -11 -10 -9 -9 -9 -9 -------- Run | Yrd Mat Mat Sto Gar Rec Hostile Shots Fired 343 | . 49 32 57 199 6 Missed 97 | . 13 7 17 58 2 Damage Taken 2250 | . 346 238 448 1173 45 Core 501 | . 98 45 127 221 10 Absorbed by Shields . | . . . . . . Ignored by Resistances 691 | . 109 71 130 369 12 Regen/Repaired (Parts) 4 | . . . 4 . . Core Remaining (%) 80 | 100 60 . . . . Volleys Fired 177 | 5 27 18 46 78 3 Largest 3 | 2 2 3 3 3 2 Hottest 110 | 70 70 110 110 110 79 Shots Fired 475 | 10 54 54 128 223 6 Gun 467 | 10 54 54 128 215 6 Cannon . | . . . . . . Launcher . | . . . . . . Special 8 | . . . . 8 . Kinetic 267 | 5 27 18 68 146 3 Thermal 186 | 5 27 36 52 63 3 Explosive . | . . . . . . Electromagnetic 22 | . . . 8 14 . Robot Hit Streak 46 | 4 10 14 46 26 18 Robot Miss Streak 3 | 1 3 2 2 2 . Penetration Max . | . . . . . . Secondary Targets 15 | . . 2 4 9 . Max Gunslinging Chain 1 | . . 1 1 1 . Shots Hit Robots 285 | 7 34 41 99 95 9 Core Hits 112 | 2 11 14 40 43 2 Critical Kills . | . . . . . . Critical Parts Destroyed . | . . . . . . Critical Strikes 8 | . 2 1 1 4 . Burn 7 | . 2 1 1 3 . Corrupt 1 | . . . . 1 . Melee Attacks 5 | . . . . . 5 Impact . | . . . . . . Slashing . | . . . . . . Piercing . | . . . . . . Sneak Attacks 3 | . . . . . 3 Combat Hostiles . | . . . . . . Follow-up Attacks . | . . . . . . Damage Inflicted 3907 | 88 430 449 1488 1358 94 Guns 3774 | 88 430 449 1416 1297 94 Cannons . | . . . . . . Explosions 128 | . . . 72 56 . Melee . | . . . . . . Ramming 5 | . . . . 5 . Kinetic 1775 | 51 216 93 630 736 49 Thermal 1636 | 37 214 356 593 391 45 Explosive . | . . . . . . Electromagnetic 491 | . . . 265 226 . Impact . | . . . . . . Slashing . | . . . . . . Piercing . | . . . . . . Highest Corruption 1 | . 1 . . . . Average Corruption 1 | . 1 . . . . Corruption Purged . | . . . . . . Corruption Blocked . | . . . . . . Effects 2 | . 2 . . . . Matter Fused 1 | . 1 . . . . Energy Discharges 1 | . 1 . . . . Overload Shots . | . . . . . . Overflow Damage . | . . . . . . Projectiles . | . . . . . . Explosions . | . . . . . . Melee . | . . . . . . Knockbacks . | . . . . . . Impact . | . . . . . . Kinetic . | . . . . . . Secondary . | . . . . . . Self-Inflicted Damage 25 | . . . 25 . . Shots 1 | . . . 1 . . Rammed . | . . . . . . Targets Rammed 3 | . . . . 3 . Kicked 3 | . . . . 3 . Crushed . | . . . . . . Highest Temperature 259 | 45 27 2 240 259 9 Average Temperature 62 | 23 8 2 73 65 5 Received Heat Transfer 1119 | . 246 93 255 516 9 Effects 1 | . . . 1 . . Interference 1 | . . . 1 . . Siege Activations . | . . . . . . Robots Corrupted . | . . . . . . Combat Hostiles . | . . . . . . Parts Fried 5 | . . . 5 . . Impact Corruptions . | . . . . . . Robots Melted 1 | . . 1 . . . Combat Hostiles 1 | . . 1 . . . Parts Melted 12 | . 1 8 2 1 . Heat Transferred 4432 | 111 777 1016 1473 944 111 Parts Sabotaged . | . . . . . . Parts Stolen . | . . . . . . Parts Stripped . | . . . . . . Power Chain Reactions 2 | . . . 1 1 . Alert | -11 -10 -9 -9 -9 -9 ------- Run | Yrd Mat Mat Sto Gar Rec Peak Influence 969 | 5 111 263 645 969 390 Initial 372 | . 2 39 94 304 372 Average 462 | 1 35 151 415 690 378 Maximum Alert Level 3 | . . 1 2 3 1 Low Security (%) 20 | 100 100 51 15 . . Level 1 25 | . . 48 21 15 100 Level 2 32 | . . . 63 35 . Level 3 21 | . . . . 48 . Level 4 . | . . . . . . Level 5 . | . . . . . . High Security . | . . . . . . Max Security . | . . . . . . Squads Dispatched 6 | . . 1 5 . . Investigation 3 | . . . 3 . . Extermination . | . . . . . . Reinforcement 2 | . . 1 1 . . Assault . | . . . . . . Garrison 1 | . . . 1 . . Intercept . | . . . . . . Searches Triggered . | . . . . . . Construction Impeded . | . . . . . . Haulers Reinforced . | . . . . . . Active Scanning Responses . | . . . . . . Cargo Convoy Interrupts . | . . . . . . Stealth | -11 -10 -9 -9 -9 -9 --------- Run | Yrd Mat Mat Sto Gar Rec Distress Signals 3 | . 1 . 2 . . Communications Jammed . | . . . . . . Distress Signals . | . . . . . . Times Spotted 84 | . 9 7 31 31 6 Peak Tracking Total 10 | . 5 4 6 10 . Tactical Retreats 3 | . . . 1 2 . Traps | -11 -10 -9 -9 -9 -9 ------- Run | Yrd Mat Mat Sto Gar Rec Traps Triggered 10 | . 1 . 2 7 . Indirectly . | . . . . . . Trap Hack Attempts . | . . . . . . Triggered . | . . . . . . Disarmed . | . . . . . . Reprogrammed . | . . . . . . Reused . | . . . . . . Traps Extracted . | . . . . . . Installed . | . . . . . . Triggered . | . . . . . . Machines | -11 -10 -9 -9 -9 -9 ---------- Run | Yrd Mat Mat Sto Gar Rec Machines Disabled 3 | . . . 1 2 . Max in Single Turn 1 | . . . . 1 . Garrison Relay 3 | . . . . 3 . Machines Repaired . | . . . . . . Machines Dismantled 1 | . . . . 1 . Machines Sabotaged . | . . . . . . Overloaded Fab Kills . | . . . . . . Hacking | -11 -10 -9 -9 -9 -9 --------- Run | Yrd Mat Mat Sto Gar Rec Machines Accessed 23 | . 5 3 9 3 3 Terminals 20 | . 5 3 7 3 2 Fabricators . | . . . . . . Repair Stations 1 | . . . 1 . . Recycling Units 1 | . . . . . 1 Scanalyzers . | . . . . . . Garrison Access 1 | . . . 1 . . Total Hacks 47 | . 8 8 16 7 8 Successful 29 | . 6 6 12 1 4 Failed 18 | . 2 2 4 6 4 Catastrophic 5 | . . . 2 3 . Database Lockouts . | . . . . . . Manual 3 | . . . 2 1 . Terminals 41 | . 8 8 12 7 6 Fabricators . | . . . . . . Repair Stations 2 | . . . 2 . . Recycling Units 2 | . . . . . 2 Scanalyzers . | . . . . . . Garrison Access 2 | . . . 2 . . Terminal Hacks 23 | . 6 6 8 1 2 Record 3 | . . 1 2 . . Part Schematic 1 | . . . . . 1 Robot Schematic 1 | . . . 1 . . Robot Analysis 2 | . . 1 1 . . Prototype ID Bank 5 | . 3 1 1 . . Open Door 2 | . . . 2 . . Branch Access Points 1 | . 1 . . . . Emergency Access Points 1 | . . . . 1 . Alert Level 2 | . . 2 . . . Dispatch Records 1 | . . . . . 1 Registered Components 1 | . . . 1 . . Zone Layout 3 | . 2 1 . . . Fabricator Hacks . | . . . . . . Repair Station Hacks 2 | . . . 2 . . Scan Component 1 | . . . 1 . . Repair 1 | . . . 1 . . Recycling Unit Hacks 2 | . . . . . 2 Report Inventory 1 | . . . . . 1 Retrieve Components 1 | . . . . . 1 Scanalyzer . | . . . . . . Garrison Access Hacks 2 | . . . 2 . . Unlock Access 1 | . . . 1 . . Coupler Status 1 | . . . 1 . . Unauthorized Hacks . | . . . . . . Terminals . | . . . . . . Fabricators . | . . . . . . Repair Stations . | . . . . . . Recycling Units . | . . . . . . Scanalyzers . | . . . . . . Garrison Access . | . . . . . . Data Cores Recovered . | . . . . . . Used . | . . . . . . Hacking Detections 13 | . 1 1 6 3 2 Full Trace Events 2 | . . . 2 . . Feedback Events . | . . . . . . Feedback Blocked . | . . . . . . Robot Schematics Acquired 1 | . . . 1 . . Robots Built . | . . . . . . Authchips . | . . . . . . Time . | . . . . . . Total Robot Build Rating . | . . . . . . Part Schematics Acquired 1 | . . . . . 1 Parts Built . | . . . . . . Authchips . | . . . . . . Time . | . . . . . . Total Part Build Rating . | . . . . . . Parts Repaired 1 | . . . 1 . . Time 44 | . . . 44 . . Parts Recycled . | . . . . . . Recycled Matter . | . . . . . . Retrieved Matter . | . . . . . . Retrieved Components 2 | . . . . . 2 Parts Scanalyzed . | . . . . . . Part Schematics Acquired . | . . . . . . Parts Damaged . | . . . . . . Bothacking | -11 -10 -9 -9 -9 -9 ------------ Run | Yrd Mat Mat Sto Gar Rec Used RIF Installer 2 | . . . . 2 . Threat Obfuscator 1 | . . . . 1 . Robots Hacked 2 | . . . . . 2 Non-combat 2 | . . . . . 2 Combat . | . . . . . . Robot Hacks Applied 3 | . . . . . 3 no_distress 1 | . . . . . 1 find_recycling 1 | . . . . . 1 ignore_parts 1 | . . . . . 1 Relay Couplers Released 11 | . . . . 11 . Machine Destruction 11 | . . . . 11 . Fabnet Peak Effective % . | . . . . . . Robots Rewired 1 | . . . . 1 . Allies Hacked . | . . . . . . Hacks Repelled . | . . . . . . Allies | -11 -10 -9 -9 -9 -9 -------- Run | Yrd Mat Mat Sto Gar Rec Total Allies 4 | . . . 2 2 . Largest Group 2 | . . . 2 2 . Highest-Rated Group 115 | . . . 115 79 . Highest-Rated Ally 100 | . . . 100 79 . Total Orders . | . . . . . . Ally Attacks 25 | . . . 21 4 . Total Damage 685 | . . . 641 44 . Kills 7 | . . . 5 2 . Allies Corrupted . | . . . . . . Allies Melted . | . . . . . . Intel | -11 -10 -9 -9 -9 -9 ------- Run | Yrd Mat Mat Sto Gar Rec Robot Analysis Total 2 | . . 1 1 . . Derelict Logs Recovered . | . . . . . . Drone Launches . | . . . . . . Drone Recoveries . | . . . . . . Exploration | -11 -10 -9 -9 -9 -9 ------------- Run | Yrd Mat Mat Sto Gar Rec Turns Passed 3561 | 69 385 273 954 1555 325 Spaces Moved 2201 | 41 236 173 470 1003 278 Core 6 | 6 . . . . . Treads . | . . . . . . Legs 2195 | 35 236 173 470 1003 278 Wheels . | . . . . . . Hover . | . . . . . . Flight . | . . . . . . Fastest Speed 50 | 50 120 120 120 105 105 Average Speed 122 | 109 121 120 146 116 105 Slowest Speed 260 | 120 190 120 190 260 105 Overloaded Moves . | . . . . . . Propulsion Burnouts . | . . . . . . Robots Hopped . | . . . . . . Cave-ins Triggered . | . . . . . . Exploration Rate (%) 55 | 4 55 24 89 88 73 Regions Visited 5 Branch Regions 2 Pre-discovered Areas . | . . . . . . Known Exits Taken 2 | . . 1 1 . . Unknown Exits Taken 2 | 1 1 . . . . Scrap Searched . | . . . . . . Spaces Dug . | . . . . . . Terrain Destroyed 9 | . . . 2 7 . Melee . | . . . . . . Projectile . | . . . . . . AOE 9 | . . . 2 7 . Terrain Rammed . | . . . . . . Walls Destroyed . | . . . . . . Machines Disabled . | . . . . . . Actions | -11 -10 -9 -9 -9 -9 --------- Run | Yrd Mat Mat Sto Gar Rec Total 2706 | 52 280 200 652 1218 304 Wait 166 | . 10 . 93 53 10 Move 2194 | 40 235 172 469 1000 278 Hop . | . . . . . . Pick Up 24 | 1 6 2 7 6 2 Fast Attach 19 | 6 2 . 4 7 . Attach 3 | . . 2 . 1 . Detach 2 | . . . 2 . . Swap 38 | . . 4 12 20 2 Drop 39 | . . 2 19 14 4 Fire 177 | 5 27 18 46 78 3 Melee 5 | . . . . . 5 Ram . | . . . . . . Kick 3 | . . . . 3 . Crush . | . . . . . . Escape Stasis 30 | . . . . 30 . Rewire 3 | . . . . 3 . Trap . | . . . . . . Miscellaneous 3 | . . . . 3 . Route ------- -11/Scrapyard -10/Materials (discovered 4 exits: *Mat x2 / *Min x2) -9/Materials (discovered 2 exits: [Mat] / *Sto) -9/Storage (discovered 3 exits: [*Mat] / *Rec / Gar) -9/Garrison (discovered 3 exits: *Rec x3) -9/Recycling History --------- Turn | Location | Event 6 | -11/Scrapyard | Discovered new exit (range 14) 70 | -11/Scrapyard | Entered Materials 206 | -10/Materials | Discovered new exit (range 3) 242 | -10/Materials | Discovered new exit (range 16) 302 | -10/Materials | Identified exit to Mines 311 | -10/Materials | Build established: Mutant 359 | -10/Materials | Discovered new exit (range 5) 455 | -10/Materials | Entered another Materials area 455 | -9/Materials | Evolved 2 slots: Utility x1, Weapon x1 696 | -9/Materials | Discovered new exit (range 11) 696 | -9/Materials | Discovered new exit (range 19) 727 | -9/Materials | Identified exit to Storage 728 | -9/Materials | Entered Storage 799 | -9/Storage | Met 01-MTF 835 | -9/Storage | Build established: Scavenger-Gunner 918 | -9/Storage | Found 01-MTF's Shockpuncher 1157 | -9/Storage | Repaired Broken Imp. Ion Engine 1169 | -9/Storage | Discovered new exit (range 16) 1410 | -9/Storage | Discovered new exit (range 8) 1628 | -9/Storage | Garrison activated, responded to threat 1679 | -9/Storage | Destroyed 8 combat bots 1680 | -9/Storage | Identified exit to Garrison 1682 | -9/Storage | Entered Garrison 1682 | -9/Garrison | Accompanied by 1 ally (01-MTF) 1687 | -9/Garrison | 01-MTF left 1702 | -9/Garrison | Triggered checkpoint 1939 | -9/Garrison | Core integrity fell below 50% 2003 | -9/Garrison | Lost 4 parts (1n3w) 2040 | -9/Garrison | Triggered checkpoint 2163 | -9/Garrison | Installed Relay Interface Framework 2197 | -9/Garrison | Discovered new exit (range 10) 2216 | -9/Garrison | Identified exit to Recycling 2266 | -9/Garrison | Triggered checkpoint 2277 | -9/Garrison | Core integrity fell below 20% 2390 | -9/Garrison | Discovered exit to Recycling (range 10) 2432 | -9/Garrison | Triggered checkpoint 2479 | -9/Garrison | Garrison Relay disabled 2560 | -9/Garrison | Triggered checkpoint 2606 | -9/Garrison | Discovered exit to Recycling (range 12) 2614 | -9/Garrison | Expanded RIF knowledge: Threat Obfuscation 2631 | -9/Garrison | Rescued a captive Derelict 2652 | -9/Garrison | Triggered checkpoint 2682 | -9/Garrison | Garrison Relay disabled 2828 | -9/Garrison | Triggered checkpoint 2875 | -9/Garrison | Garrison Relay disabled 3237 | -9/Garrison | Entered Recycling 3245 | -9/Recycling | Found Scrap Engine 3562 | -9/Recycling | Destroyed by Y-45 Defender with Heavy Assault Rifle Last Messages --------------- Connecting with Terminal... >>Enumerate(Squads) Retrieving dispatch records... No active records found. Connecting with Terminal... >>Schematic(VSS Leg) Downloading schematic... VSS Leg Rating: 3 Schematic downloaded. Y-45 Defender springs to life. Y-45 Defender destroyed. Acquired 19 matter. R-06 Scavenger collects Beam Rifle. R-06 Scavenger collects Heat Sink. R-06 Scavenger collects Imp. Ion Engine. R-06 Scavenger collects Lgt. Armor Plating. Dropped Hvy. Assault Rifle. Acquired Authchip [Weapon]. Y-45 Defender springs to life. Map ----- +----------------------------------------------------+ | | | | | | | | | | | | | | | | | | | | | | | | | | | | | | | | | | | | | | | ?????????????????????????????????????????????? | | ?????????????????????????????????????????????? | | ????#################????????????????????????? | | ????# #????????????????????????? | | ????# #############????????????? | | ????# + ?????? | | ????# #####@##+####????????????? | | ????# #?? [ Y?????????????????? | | ????# #?# !%i???????????????? | | ????# #?# s hY ! ?????????????? | | ????# #?# % =Ytgt ???????????? | | ????# #?#i|g kh= l k ?????????? | | ????# #?###############????????? | | ????########+########????????????????????????? | | ########## #?????????????????????????????? | | #?????????????????????????????? | | #?????????????????????????????? | | #?????????????????????????????? | | ########## #?????????????????????????????? | | ?????????## ###????????????????????????????? | | ??????????# //#????????????????????????????? | | ########### //#????????????????????????????? | | # # //#????????????????????????????? | | # / ###????????????????????????????? | | # # #??????????????????????????????? | | # # #??????????????????????????????? | | + # #??????????????????????????????? | | # """"" # #########??????????????????????? | | # """"" # ???????????????? | | # """"" # #########??????????????????????? | | ########### #??????????????????????????????? | +----------------------------------------------------+ Best States ------------- Heat Dissipation 48 Energy Generation 14 Energy Capacity 280 Matter Stores 300 Matter Capacity 300 Sight Range 16 Terrain Scan Density 10 Resistance: KI 20 Resistance: TH 20 Resistance: EX 20 Resistance: EM 20 Resistance: I 20 Resistance: S 20 Resistance: P 20 Evasion (%) 55 Targeting Accuracy 6 Offensive Hacking 10 Authchip Count 1 Item Schematics ----------------- VSS Leg | -9/Recycling | Hacked Robot Schematics ------------------ K-01 Serf | -9/Storage | Hacked Fabricated ------------ Nothing Alien Tech Used ----------------- None Achievements -------------- None Challenges ------------ None Game ------ Seed PhaseRemoteRipper Manual? 0 Play Time 00:29:28 Cumulative 26.7 hours Start 2024.06.10 @ 10:20:26 End 2024.06.10 @ 11:06:54 Sessions 1 Manual Loads 0 Difficulty Adventurer Special Mode None Game No. 40 Rogue 0 Adventurer 40 Explorer 0 Win Type - Total 0 Types 0/0/0/0/0/0/0/0/0 Lore% 22 Gallery% 34 Achievement% 28 Wizard Run 0 Options --------- Layout 1 ASCII 0 Keyboard 0 Movement Numpad Keybinds 0 Fullscreen 1 Font 24/Smallcaps Map View 50x35 Zoom Use 0% Tactical HUD 0 Map Filters NONE Filters NONE Steam 1 RUN: b9f7857c-a8fd-4ead-98ed-d3751a97baab